{"text_format":"1","workbook":"xlsx","n_sheets":4,"sheets":["Summary (NDC1.0)","Credit Checklist","Project Score Result","Pull Down List"],"not_rendered":{"charts":0,"images":0,"macros":1,"external_links":1,"defined_names":2,"comments":0,"pivot_tables":0},"unopened":[],"bounds":{"document_bytes":16777216,"sheet_cells":100000,"rows_first":2000,"rows_last":500,"rows_between":2000,"halvings":0,"cell_chars":16384,"cell_head_chars":4096},"cells_cut":0,"cells_raw":0,"read":"whole","date_system":"1900"}

{"sheet":"Summary (NDC1.0)","index":0,"n_rows":50,"n_cols":10,"rows_kept":50,"cut":false,"hidden":false,"merged":[[13,2,13,8],[0,0,0,9],[2,3,2,8],[4,3,4,8],[6,3,6,8],[7,5,7,8],[53,6,53,8],[17,5,17,7],[18,5,18,7],[25,2,26,8],[32,3,32,8],[38,3,38,8],[50,2,50,8]]}
["BEAM PLUS SUBMISSION SUMMARY (New Data Centres v1.0)"]
[]
[null,"Project Name: "]
[]
[null,"BEAM Plus Project No:"]
[]
[null,"Assessment Tools:"]
[null,"Provisional Assessment (PA) / Final Assessment (FA) : "]
[]
[null,"*Please be reminded that the information below should be tally with the project information fact sheet."]
[]
[null,"1.","Project Description:"]
[]
[null,null,"Please note that the project description will be shown in the assessment report."]
[]
[null,"2.","Site Area:",null,"m²"]
[]
[null,"3.","Number of Tower/Block:"]
[null,null,"(Number of Storey of each Tower/Block:",null,null,null,null,null,")"]
[]
[null,"4.","Approved GBP Submitted:"]
[]
[null,"5.","Master Programme Submitted: "]
[]
[null,"6.","Project Schedule:"]
[null,"ø","For multiple phase in a single PA or FA asssessment, please fill in the earliest start date for date of commencement and the final complete date for the work completion."]
[]
[null,"ø","a) Demolition "]
[null,null,null,"Date of Commencement:",null,null,"(mm/yyyy)"]
[null,null,null,"Date of Work Completeion:",null,null,"(mm/yyyy)"]
[null,null,null,"Consent for the commencement and carrying out of work submitted"]
[null,null,null,"Demolition is not applicable for the project."]
[null,null,null,"Please fill in with a brief reason of not applicable."]
[null,"ø","b) Foundation"]
[null,null,null,"Date of Commencement:",null,null,"(mm/yyyy)"]
[null,null,null,"Date of Work Completeion:",null,null,"(mm/yyyy)"]
[null,null,null,"Consent for the commencement and carrying out of work submitted"]
[null,null,null,"Foundation is not applicable for the project."]
[null,null,null,"Please fill in with a brief reason of not applicable."]
[null,"ø","c) Super-Structure / Construction"]
[null,null,null,"Date of Commencement:",null,null,"(mm/yyyy)"]
[null,null,null,"Date of Work Completeion:",null,null,"(mm/yyyy)"]
[null,null,null,"Consent for the commencement / carry out of building work submitted",null,null,null,"(Target/Consent Date:",null,") (dd/mm/yyyy)"]
[]
[null,null,"d) Submission of Substantiation of Work Completion"]
[null,null,null,"Certificate on Completion of Building Work",null,null,"(Target/Date of Issuance:",null,") (dd/mm/yyyy)"]
[null,null,"OR","Occupation Permit (OP)",null,"(Target/Date of Issuance:",null,") (dd/mm/yyyy)"]
[null,null,"OR","Other ","(Please specify:",null,")"]
[]
[null,null,"e) Explaination for the overlapped period in section 6:"]

{"sheet":"Credit Checklist","index":1,"n_rows":195,"n_cols":8,"rows_kept":195,"cut":false,"hidden":false,"merged":[[142,6,142,7],[178,0,179,0],[178,1,179,1],[178,3,179,3],[192,6,192,7],[132,6,132,7],[185,6,185,7],[186,5,186,7],[187,5,187,7],[188,5,188,6],[189,5,189,7],[177,6,177,7],[178,6,178,7],[174,6,174,7],[175,6,175,7],[176,6,176,7],[168,6,168,7],[170,6,170,7],[171,6,171,7],[163,6,163,7],[164,6,164,7],[134,6,134,7],[157,6,157,7],[174,0,176,0],[174,1,176,1],[168,0,169,0],[168,1,169,1],[168,3,169,3],[170,0,172,0],[170,1,172,1],[174,3,176,3],[173,2,173,7],[180,6,180,7],[182,0,183,0],[182,1,183,1],[182,3,183,3],[182,6,182,7],[183,6,183,7],[191,6,191,7],[181,6,181,7],[180,0,181,0],[180,1,181,1],[180,3,181,3],[184,2,184,7],[146,0,147,0],[146,1,147,1],[146,3,147,3],[170,3,172,3],[154,1,156,1],[154,3,156,3],[151,0,152,0],[151,1,152,1],[161,5,161,7],[149,6,149,7],[151,6,151,7],[153,6,153,7],[154,6,154,7],[155,6,155,7],[148,2,148,7],[150,6,150,7],[151,3,152,3],[158,5,158,7],[159,5,159,7],[160,5,160,6],[165,6,165,7],[146,6,146,7],[140,4,141,4],[133,0,134,0],[133,1,134,1],[133,3,134,3],[133,6,133,7],[140,5,141,5],[140,6,141,7],[135,5,135,7],[136,5,136,7],[137,5,137,6],[138,5,138,7],[140,0,141,0],[140,1,141,1],[140,2,141,2],[140,3,141,3],[119,1,120,1],[119,0,120,0],[123,6,123,7],[129,6,129,7],[130,6,130,7],[129,1,130,1],[129,0,130,0],[122,0,124,0],[122,1,124,1],[122,3,124,3],[122,6,122,7],[121,2,121,7],[125,3,126,3],[111,5,111,7],[112,5,112,6],[113,5,113,7],[115,6,115,7],[116,6,116,7],[117,6,117,7],[118,6,118,7],[119,6,119,7],[119,3,120,3],[110,5,110,7],[100,3,102,3],[100,6,100,7],[103,6,103,7],[96,0,97,0],[96,1,97,1],[96,3,97,3],[96,6,96,7],[97,6,97,7],[98,6,98,7],[109,6,109,7],[98,1,99,1],[98,0,99,0],[100,1,102,1],[100,0,102,0],[104,2,104,7],[105,6,105,7],[106,6,106,7],[105,1,108,1],[105,0,108,0],[98,3,99,3],[73,0,74,0],[73,1,74,1],[75,0,76,0],[75,1,76,1],[75,3,76,3],[75,6,75,7],[73,3,74,3],[77,3,78,3],[85,6,85,7],[82,5,82,7],[84,6,84,7],[77,0,78,0],[77,1,78,1],[79,5,79,7],[80,5,80,7],[81,5,81,6],[66,6,66,7],[51,2,51,7],[57,6,57,7],[58,2,58,7],[59,6,59,7],[69,6,69,7],[70,6,70,7],[72,6,72,7],[62,0,63,0],[62,1,63,1],[64,0,71,0],[64,1,71,1],[64,6,64,7],[65,6,65,7],[65,3,71,3],[21,3,26,3],[21,1,26,1],[21,0,26,0],[29,3,30,3],[27,3,28,3],[60,6,60,7],[61,6,61,7],[49,6,49,7],[50,6,50,7],[44,5,44,7],[45,5,45,7],[46,5,46,6],[47,5,47,7],[37,6,37,7],[27,0,30,0],[27,1,30,1],[27,6,27,7],[29,6,29,7],[32,2,32,7],[39,3,41,3],[39,1,41,1],[39,0,41,0],[2,6,2,7],[3,6,3,7],[4,6,4,7],[16,6,16,7],[17,0,19,0],[17,1,19,1],[17,3,19,3],[17,6,17,7],[18,6,18,7],[19,6,19,7],[5,6,5,7],[9,3,11,3],[9,1,11,1],[9,0,11,0],[12,0,15,0],[12,1,15,1],[12,3,15,3],[12,6,12,7],[13,6,13,7],[14,6,14,7],[15,6,15,7],[6,6,6,7],[7,0,8,0],[7,1,8,1],[7,3,8,3],[7,6,7,7],[20,6,20,7],[22,6,22,7],[23,6,23,7],[52,1,56,1],[52,0,56,0],[52,3,56,3],[53,6,53,7],[52,6,52,7],[42,6,42,7],[42,3,43,3],[42,1,43,1],[42,0,43,0],[26,6,26,7],[25,6,25,7],[21,6,21,7],[39,6,39,7],[31,6,31,7],[33,6,33,7],[34,6,34,7],[37,0,38,0],[37,1,38,1],[37,3,38,3],[86,6,86,7],[90,2,90,7],[88,2,88,7],[89,2,89,7],[91,0,92,0],[91,1,92,1],[131,6,131,7],[144,6,144,7],[143,2,143,7],[144,3,145,3],[144,1,145,1],[144,0,145,0],[125,6,125,7],[126,6,126,7],[125,1,126,1],[125,0,126,0],[127,2,127,7],[128,2,128,7],[91,3,92,3],[91,6,91,7],[93,0,95,0],[93,1,95,1],[93,3,95,3],[93,6,93,7]]}
["2. Credit Summary"]
[]
[null,"Section","Credit Requirement","Extent of Application","Credit Attainable","Credit Applicable","Credit Anticipated"]
["Integrated Design & Construction Management (IDCM)",null,null,null,"22+16B","Y/N?"]
["IDCM-00-P1 ","Sustainability Champions - Project","Prerequisite achieved for demonstrating that an accredited BEAM Professional (BEAM Pro) with a valid credential for BEAM Plus New Data Centres is engaged as the Project BEAM Pro of the consultant team. ","All DC","Required","Y","Required"]
["IDCM-00-P2","Environmental Management Plan ","Prerequisite achieved for demonstrating that an Environmental Management Plan has been properly prepared.","All DC","Required","Y","Required"]
["IDCM-00-P3","Timber Used for Temporary Works","Prerequisite achieved for demonstrating that no virgin forest products are used for temporary works.","All DC","Required","Y","Required"]
["IDCM-01-01","Sustainability Champions - Design","1 credit point for at least 2 members from at least 2 applicable core design disciplines shall be accredited BEAM Professionals with valid credentials for BEAM Plus New Data Centres.","All DC",1,"Y",0]
[null,null,"1 additional Bonus credit point for at least 1 additional member, from an applicable core design discipline different from the disciplines counted in the above credit, shall be an accredited BEAM Professional with valid credentials for BEAM Plus New Data Centres.\n\nAlternatively,\n\n1 additional Bonus credit point for at least 2 additional members, from an applicable core design discipline different from the disciplines counted in the above credit, shall be accredited BEAM Affiliates.",null,"1B","Y",0,"B"]
["IDCM-01-02","Complimentary Certification","(a) BEAM Plus Neighbourhood (ND)\n\n1 Bonus credit point where the project is certified by BEAM Plus Neighbourhood (ND) certification.","All DC","1B","Y",0,"B"]
[null,null,"(b) BEAM Plus Interiros (BI)\n\n1 Bonus credit point for preparing the Project for BEAM Plus Interiors (BI) certification.",null,"1B","Y",0,"B"]
[null,null,"(c) BEAM Plus Existing Data Centres (EDC)\n\n1 Bonus credit point for preparing the Project for BEAM Plus Existing Data Centres (EDC) certification.",null,"1B","Y",0,"B"]
["IDCM-01-03","Integrated Design Process","(a) Early Considerations for Integrated Building Design\n\n1 credit point for consideration of the integrated design process regarding whole-system thinking to explore the interrelationships among green building design strategies and systems in the conceptual design stage.","All DC",1,"Y",0]
[null,null,"1 credit point for organising at least one multi-disciplinary design charrette to formulate passive and active design strategies in the conceptual/ schematic design stage.",null,1,"Y",0]
[null,null,"(b) Early Design Consideration of Buildability/ Constructability\n\n1 credit point for early design consideration of buildability to ease construction and save on-site materials/ labour before completion of the design development stage.",null,1,"Y",0]
[null,null,"(c) Design Consideration for Operation and Maintenance\n\n1 credit point for design consideration of the long-term operation and maintenance needs of the DC and its engineering services.",null,1,"Y",0]
["IDCM-01-04","Life Cycle Costing","1 credit point for conducting life cycle costing for active systems.","All DC",1,"Y",0]
["IDCM-01-05","Commissioning","2 credit points for demonstrating (a) the appointment of commissioning authority (CxA) before tender stage and (b) providing a commissioning plan.","All DC",2,"Y",0]
[null,null,"1 credit point for providing a commissioning review report before construction as described in part (c).",null,1,"Y",0]
[null,null,"1 credit point for providing commissioning reports as described in part (d).",null,1,"Y",0]
["IDCM-02-01","Sustainability Champions - Construction","1 credit point for at least 2 accredited BEAM Professionals with valid credential for BEAM Plus New Data Centres, are engaged by the main/ lead contractor of the project.\n\nAlternatively,\n\n1 credit point for at least 1 accredited BEAM Professional with valid credential for BEAM Plus New Data Centres and 2 accredited BEAM Affiliates, are engaged by the main/ lead contractor of the project. ","All DC",1,"Y",0]
["IDCM-02-02","Measures to Reduce Site Emissions","For whole building DC developments\n\n(a) Minimisation of Air Pollution\n\n1 credit point for providing adequate monitoring and mitigation measures to minimise air pollution during construction (demolition and foundation are included, if any).","All DC",1,"Y",0]
[null,null,"(b) Minimisation of Noise Pollution\n\n1 credit point for providing adequate monitoring and mitigation measures to minimise noise pollution during construction (demolition and foundation are included, if any).",null,1,"Y",0]
[null,null,"(c) Minimisation of Water Pollution\n\n1 credit point for providing adequate monitoring and mitigation measures to minimise water pollution during construction (demolition and foundation are included, if any).",null,1,"Y",0]
[null,null,"(d) Minimisation of Light Pollution\n\n1 Bonus credit point for providing adequate monitoring and mitigation measures to minimise light pollution during construction (demolition and foundation are included, if any).",null,"1B","Y",0,"B"]
[null,null,"For DC developments located in part of building\n\n(a) Minimisation of Construction Dust\n\n1 credit point for providing adequate monitoring and mitigation measures to minimise air pollution to host building users and neighbouring occupants during construction and fit-out activities.",null,1,"Y",0]
[null,null,"(b) Minimisation of Construction Noise\n\n1 credit point for providing adequate monitoring and mitigation measures to minimise noise pollution to host building users and neighbouring occupants during construction and fit-out activities.",null,1,"Y",0]
["IDCM-02-03","Construction and Demolition Waste Recycling","(a) Demolition Waste Recycling\n\n1 credit point for demonstrating compliance with the Waste Management Plan and the application of proactive waste management provisions during demolition; and recycling at least 15% of demolition waste.","All DC requiring demolition which are under the Applicant’s control",1,"Y",0]
[null,null,"1 to 2 additional Bonus credit points for recycling at least 30% or 60% of demolition waste.",null,"2B","Y",0,"B"]
[null,null,"(b) Construction Waste Recycling\n\n1 credit point for demonstrating compliance with the Waste Management Plan and the application of proactive waste management provisions during construction (foundation to be included, if any); and recycling at least 15% of construction waste (foundation waste to be included, if any).","All DC",1,"Y",0]
[null,null,"1 to 2 additional Bonus credit points for recycling at least 30% or 60% of construction waste (foundation waste to be included, if any).",null,"2B","Y",0,"B"]
["IDCM-02-04","Construction IAQ Management","1 credit point for implementing a Construction IAQ Management Plan, undertaking a building ‘flush out’ or ‘bake out’, and replacement of all filters prior to occupancy.","All DC\n",1,"Y",0]
["IDCM-02-05","Considerate Construction","This credit head is not applicable under BEAM Plus NDC."]
["IDCM-02-06","Building Management Manuals","1 credit point for providing a fully documented Operations and Maintenance Manual and Energy Management Manual.","All DC",1,"Y",0]
["IDCM-02-07","Operator Training plus Chemical Storage and Mixing Room","1 credit point for providing training for operations and maintenance staff to the minimum specified; and demonstrating that adequate maintenance facilities are provided for chemical storage and mixing.","All DC",1,"Y",0]
["IDCM-03-01","Digital Facility Management Interface","1 Bonus credit point for providing a digital interface in addition to the project design metering provision for future DC facility management team to review the building operation performance.","All DC\n","1B","Y",0,"B"]
["IDCM-03-02","Occupant Engagement Platform","1 Bonus credit point for providing a digital platform to engage building occupants.","All DC","1B","Y",0,"B"]
["IDCM-03-03","Document Management System","(a) Project Team Document Management \n\n1 credit point for demonstrating the use of document management systems within the design team.","All DC",1,"Y",0]
[null,null,"(b) Facility Management Team Document Management \n\n1 additional Bonus credit point for demonstrating the use of document management platform by the DC owner or DC management company.",null,"1B","Y",0,"B"]
["IDCM-03-04","BIM Integration","(a) Coordinated Use of BIM with Design Teams and Construction Teams\n\n1 credit point for the coordinated use of BIM among the design team.","All DC",1,"Y",0]
[null,null,"1 additional Bonus credit point for coordinated use of BIM among the design team and the contractors.",null,"1B","Y",0,"B"]
[null,null,"(b) Other Applications of BIM \n\nMaximum 2 bonus credit points for the following BIM application:\n\nBIM for Time\n1 Bonus credit point for using the BIM model for scheduling, cost and quantity, schedules preparation and tracking the project budget.\n\nBIM for Facility Management Use\n1 Bonus credit point for updating the BIM model to as-built condition.",null,"2B","Y",0,"B"]
["IDCM-04-01","Design for Engagement and Education on Green Buildings","1 credit point for providing any 2 education elements from the following list of green building design measures and provisions accredited by BEAM Plus and implemented in the project. The Project must achieve a rating of Bronze or above.","All DC",1,"Y",0]
[null,null,"1 additional Bonus credit point for providing 4 education elements.\n\n1. Provide users with manuals for all green building design measures and provisions.\n\n2.\tProvide educational signage system that is integrated with the major communal areas of the project to educate users and visitors about the benefits of the green building design measures and provisions.\n\n3.\tProvide users a platform for sustainable living showcase demonstration, experience or sharing that are relevant to the enabling design measures and provisions in the project. e.g. websites, regular publications available to the public, newspapers or other means.\n\n4.\tAdditional or alternative education element(s) proposed by the Applicant with substantiation demonstrating strategies compatible with the listed strategies for achieving the credit objective.",null,"1B","Y",0,"B"]
[null,null,null,null,"Credit Applicable:",{"$f":"IF(COUNTIF(F8:F44,\"Y\")=0,\" \", SUMIFS(E8:E44,E8:E44,\">0\",F8:F44,\"Y\"))","v":24}]
[null,null,null,null,"Credit Anticipated:",{"$f":"IF(COUNTIF(F8:F44,\"Y\")=0,\" \",SUMIFS(G8:G44,E8:E44,\">0\",F8:F44,\"Y\"))","v":0}]
[null,null,null,null,"Bonus Anticipated:",{"$f":"IF(COUNTIF(F8:F44,\"Y\")=0,\" \",SUMIFS(G8:G44,E8:E44,\"1B\",F8:F44,\"Y\")+SUMIFS(G8:G44,E8:E44,\"2B\",F8:F44,\"Y\"))","v":0},null,"B"]
[null,null,null,null,"Percentage of Credits Achieved:",{"$f":"IF(COUNTIF(F8:F44,\"Y\")=0,\" \",IF((F46+F47*1.2)/SUMIF(F8:F44,\"Y\",E8:E44)>100%,100%,(F46+F47*1.2)/SUMIF(F8:F44,\"Y\",E8:E44)))","v":0}]
[]
[null,"Section","Credit Requirement","Extent of Application","Credit Attainable","Credit Applicable","Credit Anticipated"]
["Sustainable Site (SS)",null,null,null,"12+16B","Y/N?"]
["SS-00-P1","Minimum Landscaping Requirements","This Prerequisite is not applicable under BEAM Plus NDC."]
["SS-01-01","Pedestrian-oriented and Low Carbon Transport","(a) Accessibility to Public Transport\n\n1 credit point for achieving Accessibility Index of 15 or more for all buildings of a development.","All DC",1,"Y",0]
[null,null,"(b) Pedestrian-oriented Access\n\n1 credit point for achieving 50% or more of the pedestrian-oriented transport planning measures.",null,1,"Y",0]
[null,null,"1 additional Bonus credit point for 100% achievement.",null,"1B","Y",0,"B"]
[null,null,"(c) Cycling Facilities and Network Integration\n\n1 Bonus credit point for providing cycling facilities within the Site and integrating with the public cycling network if a public cycling network exists or has been planned nearby.",null,"1B","Y",0,"B"]
[null,null,"(d) Charging Facilities for Electric Vehicle (EV)\n\n1 Bonus credit point for providing EV medium chargers for at least 50% of all parking spaces and EV charging-enabling for all parking spaces (including visitor car parks).",null,"1B","Y",0,"B"]
["SS-01-02","Neighbourhood Amenities","1 credit point where adequate amenities for building users are located within the site or 1,000m walking distance/ an equivalent horizontal commuting time from the site entrance(s).","All DC",1,"Y",0]
["SS-01-03","Building Design for Sustainable Urbanism","This credit head is not applicable under BEAM Plus NDC."]
["SS-01-04","Neighbourhood Daylight Access","1 credit point for the designs which the access to daylight of neighbouring sensitive buildings is maintained to the prescribed levels.","Whole building DC developments",1,"Y",0]
["SS-01-05","Noise Control for Building Equipment","1 credit point for demonstrating that the level of the intruding noise at the facade of potential noise sensitive receivers is in compliance with the criteria recommended in the Technical Memorandum for the Assessment of Noise from Places Other than Domestic Premises, Public Places or Construction Sites.","All DC",1,"Y",0]
["SS-02-01","Light Pollution Control","1 credit point for demonstrating that the obtrusive light from exterior lighting meets the specified performance for the environmental zone in which the building development is located.","All DC",1,"Y",0]
["SS-02-02","Biodiversity Enhancement","(a) Reduction of Ecological Impact \n\n1 Bonus credit point for demonstrating all identified habitat types on Site are of low or negligible indicative ecological values.\n\nAlternatively,\n\n1 Bonus credit point for all identified habitat types on Site of medium to high indicative ecological value are preserved intact and are either unaffected by the planned development.","All whole building DC development sites with tree except brownfield or sites on reclaimed land","1B","Y",0,"B"]
[null,null,"(b) Enhancement of Biodiversity\n\n1 Bonus credit point for preparing a manual on biodiversity-friendly landscape maintenance, PLUS adopting measures to increase diversity and complexity of planting for enhancing the biodiversity of the site.","All whole building DC development sites with adjacent areas of medium or high ecological value ","1B","Y",0,"B"]
["SS-03-01","Urban Heat Island Mitigation","For Site area < 1,000m2\n\n1 credit point for implementing at least 2 site level strategies under Section 11 of Hong Kong Planning Standards and Guidelines Chapter 11 Urban Design Guidelines.","Whole building DC developments & for Site area < 1,000m2",1,"Y",0]
[null,null,"For Site area ≥ 1,000m2\n\n(a) Sustainable Building Design Measures\n\n1 credit point for providing shade on at least 5% of the site area and at least 50% of non-roof impervious surfaces on the site (parking, walkways, plazas) using light coloured high-albedo materials (albedo of at least 0.4).","Whole building DC developments & for Site area ≥ 1,000m2",1,"Y",0]
[null,null,"1 credit point for demonstrating compliance with prescribed requirements of the SBD Guidelines as promulgated in the PNAP APP-152; and",null,1,"Y",0]
[null,null,"1 additional Bonus credit point for demonstrating with relevant prescriptive requirements with enhanced performances.",null,"1B","Y",0,"B"]
[null,null,"(b) Tree Coverage\n\n2 to 3 Bonus credit points for demonstrating that at least 10% or 20% of the total Site Area is provided with tree coverage.",null,"3B","Y",0,"B"]
[null,null,"(c) Air Ventilation Assessment (AVA)\n\nFor conducting an AVA by wind tunnel or Computational Fluid Dynamics (CFD) according to the prevailing AVA methodology introduced by the Government demonstrating that better or equivalent ventilation performances than a baseline case:\n\n1 credit point for demonstrating annual wind condition.",null,1,"Y",0]
[null,null,"1 credit point for demonstrating summer wind condition.",null,1,"Y",0]
[null,null,"(d) Intra Urban Heat Island Study\n\n2 Bonus credit points for conducting an Intra Urban Heat Island Study demonstrating that a maximum Intra-Urban Heat Index (difference between Turban and Tmet) in summer is less than 0.8 °C.",null,"2B","Y",0,"B"]
["SS-03-02","Immediate Neighbourhood Wind Environment","1 credit point for demonstrating that no pedestrian areas will be subject to excessive wind velocities caused by amplification due to the site layout design and/ or building design.","Whole building DC developments",1,"Y",0]
["SS-03-03","Outdoor Thermal Comfort","(a) Shaded or Covered Routes \n\n1 Bonus credit point is achieved where at least one shaded or covered route, connecting the site with nearby amenities/ site main entrance/ transport hub.","Whole building DC developments with a site area of 1,000m2 or more.","1B","Y",0,"B"]
[null,null,"(b) Passive Open Spaces with Thermal Comfort\n\n1 Bonus credit point is achieved where 50% or more of the passive open spaces and pedestrian zones achieve thermal comfort. This is demonstrated on a typical summer day at 3:00 pm in Hong Kong.",null,"1B","Y",0,"B"]
["SS-04-01","Stormwater Management","1 credit point for demonstrating that adequate stormwater management design measures have been provided to cater the total volume of runoff for one hour corresponding to a design rainfall of at least 30mm/event for the site in its post-developed conditions.","Whole building DC developments with a site area of 1,000m2 or more.",1,"Y",0]
[null,null,"1 additional Bonus credit point for the adopted measures that are able to cater at least 40mm/event for the site in its post-developed conditions.",null,"1B","Y",0,"B"]
["SS-04-02","Design for Climate Change Adaptation","1 Bonus credit for studying the projected variation in temperature and rainfall and water level rise/ storm surge of adjacent water bodies due to climate change and its impact on the development, and prepare mitigation proposal to improve the climate resilience of the building.","Whole building DC developments","1B","Y",0,"B"]
[null,null,"1 additional Bonus credit point for including quantitative calculation to support the resilience design which is technically eligible and cost effective.",null,"1B","Y",0,"B"]
[null,null,null,null,"Credit Applicable:",{"$f":"IF(COUNTIF(F53:F79,\"Y\")=0,\" \", SUMIFS(E53:E79,E53:E79,\">0\",F53:F79,\"Y\"))","v":13}]
[null,null,null,null,"Credit Anticipated:",{"$f":"IF(COUNTIF(F53:F79,\"Y\")=0,\" \",SUMIFS(G53:G79,E53:E79,\">0\",F53:F79,\"Y\"))","v":0}]
[null,null,null,null,"Bonus Anticipated:",{"$f":"IF(COUNTIF(F53:F79,\"Y\")=0,\" \",SUMIFS(G53:G79,E53:E79,\"1B\",F53:F79,\"Y\")+SUMIFS(G53:G79,E53:E79,\"2B\",F53:F79,\"Y\")+SUMIFS(G53:G79,E53:E79,\"3B\",F53:F79,\"Y\"))","v":0},null,"B"]
[null,null,null,null,"Percentage of Credits Achieved:",{"$f":"IF(COUNTIF(F53:F79,\"Y\")=0,\" \",IF((F81+F82*1.2)/SUMIF(F53:F79,\"Y\",E53:E79)>100%,100%,(F81+F82*1.2)/SUMIF(F53:F79,\"Y\",E53:E79)))","v":0}]
[]
[null,"Section","Credit Requirement","Extent of Application","Credit Attainable","Credit Applicable","Credit Anticipated"]
["Materials and Waste (MW)",null,null,null,"12+15B","Y/N?"]
["MW-00-P1","Minimum Waste Handling Facilities","Prerequisite achieved for meeting minimum provisions of waste recycle facilities for the collection, sorting, storage, recycling (recovered material) and disposal (waste).","All DC","Required","Y","Required"]
["MW-01-01","Building Re-use","1 to 3 Bonus credit points for the reuse of at least 20%, 40% or 90% (by mass or volume) of existing structures (sub-structure and superstructure).","Whole building DC developments","3B","Y",0,"B"]
["MW-01-02","Modular and Standardised Design","This credit head is not applicable under BEAM Plus NDC."]
["MW-01-03","Prefabrication","This credit head is not applicable under BEAM Plus NDC."]
["MW-01-04","Design for Durability and Resilience\n","This credit head is not applicable under BEAM Plus NDC."]
["MW-02-01","Sustainable Forest Products","1 credit point for demonstrating at least 50% of all timber and composite timber products used for DC are from sustainable sources/ recycled timber.","All DC,\nexcept DC with an insignificant amount of timber products being adopted (e.g. all timber products used in the building consists of five sets of doors only)",1,"Y",0]
[null,null,"1 additional bonus credit point for 90% or more.",null,"1B","Y",0,"B"]
["MW-02-02","Recycled Materials","1 credit point for using recycled materials for any one of the building components listed below.\n\nBuilding Components:\n\ni) Outside Surface Works and Structures;\nii) Building Façade and Structural Components; and\niii) Interior Non-structural Components.","All DC",1,"Y",0]
[null,null,"1 additional Bonus credit point for compliance with all the listed building components.",null,"1B","Y",0,"B"]
[null,null,"2 additional Bonus credit points for achieving 50% or more of all materials used for the listed building components are materials with recycled content.",null,"1B","Y",0,"B"]
["MW-02-03","Ozone Depleting Substances","(a) Refrigerants\n\n1 credit point for the use of refrigerants with a value less than or equal to the threshold of the combined contribution to ozone depletion and global warming potentials using the specified equation.","All building equipment & insulation servicing the assessed DC",1,"Y",0]
[null,null,"(b) Ozone Depleting Materials\n\n1 credit for the use of products in the building fabric and services that avoid using ozone depleting substances in their manufacture, composition or use.",null,1,"Y",0]
["MW-02-04\t","Regional Materials","1 credit point for the use of regional materials meeting prescribed requirement, which contribute at least 10% of all building materials used in the project.","All DC",1,"Y",0]
[null,null,"1 to 2 additional Bonus credit points for at least 20% or 50%.",null,"2B","Y",0,"B"]
["MW-02-05","Use of Green Products","(a) Certified Green Products\n\n1 or 2 credit points for having at least 5% certified green products in 1 or 2 of the listed categories (i.e., outside surface works, building façade and structures, interior non-structural components, and building services components).","All DC",2,"Y",0]
[null,null,"1 or 2 additional Bonus credit points for having at least 5% or 25% of certified green products under Construction Industry Council (CIC) Green Product Certification in 1 of the listed categories (outside surface works, building façade and structures, interior non-structural components, and building services components).",null,"2B","Y",0,"B"]
[null,null,"(b) Rapidly Renewable Materials\n\n1 or 2 Bonus credit points for 5% or 25% of all building materials/ products of interior non-structural components in the project is rapidly renewable materials.",null,"2B","Y",0,"B"]
["MW 8","Life Cycle Assessment","1 credit point for demonstrating the embodied energy in the major elements of the building structure of the DC has been studied and optimised through a Life Cycle Assessment (LCA).\n\nAlternatively,\n\n1 credit point for demonstrating the embodied carbon in the major elements of the building structure of the building has been studied and optimised by using the CIC Carbon Assessment Tool or similar assessment tools.","Whole building DC developments",1,"Y",0]
["MW-03-01","Adaptability and Deconstruction","This credit head is not applicable under BEAM Plus NDC."]
["MW-03-02","Enhanced Waste Handling Facilities","(a) Additional Recyclables Collection\n\n1 credit point for the provision of facilities for collection, sorting, storage and disposal of 2 other recyclable streams in addition to those described in MW-00-P1.","All DC",1,"Y",0]
[null,null,"(b) Additional Facility Provisions to Enable enhanced Municipal Solid Waste (MSW) Charing Scheme\n\n1 credit point for additional facilities for collection, sorting, storage and disposal of recyclables in addition to those described in MW-00-P1 and MW-03-02 part (a).","Part (b) is applicable only when Municipal Solid Waste Charging Scheme is activated",1,"Y",0]
[null,null,"(c) Waste Treatment Equipment\n\n1 Bonus credit point for providing at least one set of waste treatment equipment.",null,"1B","Y",0,"B"]
[null,null,"(d) Alternatives to Recycling Facilities \n\n1 Bonus credit point for providing alternative means of waste collection systems.",null,"1B","Y",0,"B"]
["MW-04-01","Best Practice on Material Usage","2 credit points for demonstrating the adoption of at least 4 best practices relating to the efficient use of materials as mentioned in the Green Data Centre Practice Guide published by BEAM Society Limited (BSL).","All DC",2,"Y",0]
[null,null,null,null,"Credit Applicable:",{"$f":"IF(COUNTIF(F88:F110,\"Y\")=0,\" \", SUMIFS(E88:E110,E88:E110,\">0\",F88:F110,\"Y\"))","v":12}]
[null,null,null,null,"Credit Anticipated:",{"$f":"IF(COUNTIF(F88:F110,\"Y\")=0,\" \",SUMIFS(G88:G110,E88:E110,\">0\",F88:F110,\"Y\"))","v":0}]
[null,null,null,null,"Bonus Anticipated:",{"$f":"IF(COUNTIF(F88:F110,\"Y\")=0,\" \",SUMIFS(G88:G110,E88:E110,\"1B\",F88:F110,\"Y\")+SUMIFS(G88:G110,E88:E110,\"2B\",F88:F110,\"Y\")+SUMIFS(G88:G110,E88:E110,\"3B\",F88:F110,\"Y\"))","v":0},null,"B"]
[null,null,null,null,"Percentage of Credits Achieved:",{"$f":"IF(COUNTIF(F88:F110,\"Y\")=0,\" \",IF((F112+F113*1.2)/SUMIF(F88:F110,\"Y\",E88:E110)>100%,100%,(F112+F113*1.2)/SUMIF(F88:F110,\"Y\",E88:E110)))","v":0}]
[]
[null,"Section","Credit Requirement","Extent of Application","Credit Attainable","Credit Applicable","Credit Anticipated"]
["Energy Use (EU)",null,null,null,"35+3B","Y/N?"]
["EU-00-P1","Minimum Energy Performance","Demonstrate (a) performance improvement against the latest edition of Building Energy Code (BEC) and (b) Maximum Power Usage Effectiveness (PUE).\n\n(a) Performance against the latest edition of BEC\n\nDemonstrate compliance with the latest edition of BEC on:\n\n1. Air-conditioning equipment efficiency (full load COP and 75% load for VSD equipment); and\n\n2. Lighting power density for listed space type in the code.\n\n(b) Maximum Power Usage Effectiveness (PUE)\n\nThe data centre must have a design PUE at full IT load condition of no more than 2.0.","All DC","Required","Y","Required"]
["EU-01-01","Low Carbon Passive Design","Passive designs that can reduce building HVAC load and maximise daylight will be rewarded in this credit head under either prescriptive path or performance path.\n\nOption 1: Prescription Path\n1 to 2 credit points for incorporating 1 or 2 of the passive design strategies listed below:\ni. Optimum Spatial Planning\nii. External Overhang (fix/ movable)\niii. Vegetated Building Envelope\niv. Daylighting Provision\n\nOption 2: Performance Path\n1 to 3 credit points for incorporating up to 3 of the passive design strategies listed below:\nHVAC Load Reduction\n1. Built Form and orientation\n1 credit point for reducing building envelope load from a hypothetic case with at least 22.5° difference in orientation with justification by simulation.\n\n2. Optimum Spatial Planning\n1 credit point for demonstrating consideration of optimum spatial planning to enhance energy conservation with justification by simulation. \n\n3. External Shading Devices\n1 credit point for the provision of fixed or movable external shading devices, in the form of vertical or horizontal sun shading feature with justification by simulation. \n\n4. Vegetated Building Envelope\n1 credit point for the provision of vegetated building envelope with justification by calculation. \n\nDaylight\n5. Space Layout for Daylight Penetration\n1 credit point for demonstrating that the space is well-lit by daylight and reduce occupants’ dependency on artificial lighting with justification by simulation method.","All DC",3,"Y",0]
["EU-01-02","Reduction of CO2 Emissions","Predicted Power Usage Effectiveness (PUE)\n\nDemonstrate and quantify the proposed DC energy performance operating under Hong Kong climatic conditions at 75% of the design IT load and express them in terms of Power Usage Effectiveness (PUE).\n\n1 to 15 credit points for design PUE value between 1.77 and 1.52.","All DC",15,"Y",0]
[null,null,"1 to 2 additional Bonus credit points for design PUE value lower than 1.5 and 1.4, respectively.",null,"2B","Y",0,"B"]
["EU-01-03","Peak Electricity Demand Reduction","This credit head is not applicable under BEAM Plus NDC."]
["EU-01-04","Metering and Monitoring","(a) Fundamental Metering and Monitoring\n\n1 credit point for providing energy monitoring system for equipment and systems in spaces.\n","All DC",1,"Y",0]
[null,null,"b) Metering and monitoring for PUE\n\n1 credit point for energy metering to provide total facility power and energy usage and total IT equipment power and energy at the output of Power Distribution Units (PDUs) for determining instantaneous and average PUE data at Level 2.",null,1,"Y",0]
[null,null,"1 additional Bonus credit point for providing metering that allows monitoring of individual IT equipment output at data hall racks for determining Level 3 PUE.",null,"1B","Y",0,"B"]
["EU-02-01","Renewable and Alternative Energy Systems","(a) Solar Energy Feasibility Study\n\n1 credit point for evaluating the building roof’s potential for harnessing solar energy.","All DC",1,"Y",0]
[null,null,"(b) Renewable Energy Application\n\nOption 1\n\n1 to 3 credit points for using on-/ off-site renewable energy systems to offset annual building energy consumption for non-data centre subsystem, i.e. Building Service systems servicing non-data hall areas, plant rooms, personal office areas and personal office loads, etc. to offset 0.4%, 0.6% or 0.8% energy consumption.\n\nOption 2\n\n1 to 3 credit points where the minimum percentage of 40%, 60% or 80% of the building footprint is being covered/ used by PV panels respectively and/ or other renewable power facility generation with equivalent renewable power output.",null,3,"Y",0]
["EU-03-01","Air-Conditioning Units","This credit head is not applicable under BEAM Plus NDC."]
["EU-03-02","Clothes Drying Facilities","This credit head is not applicable under BEAM Plus NDC."]
["EU-03-03","Energy Efficient Appliances","(a) Use of Efficient UPS\n1 credit point for demonstrating that the Uninterruptible Power Supplies (UPS) is procured in accordance with certified energy efficient products scheme.","All DC",1,"Y",0]
[null,null,"(b) Use of Sustainable IT Equipment\n1 credit point for demonstrating that the IT Equipment for the running and operating of the DC is procured in accordance with certified energy efficient products scheme.","DC with operational control over the IT Equipment.",1,"Y",0]
["EU-03-04","Cooling System Efficiency","(a) Air-cooled Cooling System\n\n1 to 2 credit points for demonstrating the total cooling system efficiency serving data hall is of 0.85 kW/ton and 0.78 kW/ton, respectively.\n\nOR\n\n(b) Water-cooled Cooling System\n\n1 to 2 credit point (s) for demonstrating the total cooling system efficiency serving data hall is of 0.8 kW/ton and 0.75 kW/ton, respectively.\n\nNote: For DC equipped with combined system type, the assessment will be based on the dominated plant, i.e., at least 75% of actual cooling consumption by the dominated system.","All DC",2,"Y",0]
["EU-03-05\t","Air Management System","1 to 2 credit points for demonstrating the total air flow efficiency of the air distribution system serving all data hall, from supply to return, is of 0.9 kW/m³/s and 0.8 kW/m³/s, respectively.","All DC",2,"Y",0]
["EU-04-01","Best Practice on Energy Use","1 to 3 credit points for incorporating at least 2 best practices under each of the following aspect in the Green DC Practice Guide published by BEAM Society Limited.\n\ni) Cooling System;\n\nii) Air Flow Management;\n\niii) Operating at Higher Temperature and Humidity;\n\niv) Cooling Management; and\n\nv) Power System.","All DC",3,"Y",0]
[null,null,"2 credit points for incorporating at least 6 best practices across the following aspects as listed in the Green DC Practice Guide published by BEAM Society Limited:\n\ni) Design of Resilience;\n\nii) Monitoring and Managing Energy Efficiency;\n\niii) IT Equipment Deployment;\n\niv) IT Application System and IT Service Deployment; and\n\nv) Telecommunications and Network Cabling.",null,2,"Y",0]
[null,null,null,null,"Credit Applicable:",{"$f":"IF(COUNTIF(F119:F135,\"Y\")=0,\" \", SUMIFS(E119:E135,E119:E135,\">0\",F119:F135,\"Y\"))","v":35}]
[null,null,null,null,"Credit Anticipated:",{"$f":"IF(COUNTIF(F119:F135,\"Y\")=0,\" \",SUMIFS(G119:G135,E119:E135,\">0\",F119:F135,\"Y\"))","v":0}]
[null,null,null,null,"Bonus Anticipated:",{"$f":"IF(COUNTIF(F119:F135,\"Y\")=0,\" \",SUMIFS(G119:G135,E119:E135,\"1B\",F119:F135,\"Y\")+SUMIFS(G119:G135,E119:E135,\"2B\",F119:F135,\"Y\"))","v":0},null,"B"]
[null,null,null,null,"Percentage of Credits Achieved:",{"$f":"IF(COUNTIF(F119:F135,\"Y\")=0,\" \",IF((F137+F138*1.2)/SUMIF(F119:F135,\"Y\",E119:E135)>100%,100%,(F137+F138*1.2)/SUMIF(F119:F135,\"Y\",E119:E135)))","v":0}]
[]
[null,"Section","Credit Requirement","Extent of Application","Credit Attainable","Credit Applicable","Credit Anticipated"]
[]
["Water Use (WU)",null,null,null,"12+2B","Y/N?"]
["WU-00-P1","Minimum Water Saving Performance","This prerequisite is not applicable under BEAM Plus NDC."]
["WU-01-01","Annual Water Use","1 to 3 credit points for demonstrating that the use of water efficient devices leads to an estimated annual saving of 20%, 25% or 30%.","All DC",3,"Y",0]
[null,null,"1 additional Bonus credit point for demonstrating that the use of water efficient devices leads to an estimated annual saving of 40%.",null,"1B","Y",0,"B"]
["WU-01-02","Water Efficient Irrigation","1 to 2 credit points for reducing 25% or 50% of potable water consumption for irrigation in comparison with the baseline.","All DC with permanent greenery and permanent irrigation system",2,"Y",0]
[null,null,"1 additional Bonus credit point for achieving 100% reduction.",null,"1B","Y",0,"B"]
["WU-01-03","Water Efficient Appliances","This credit head is not applicable under BEAM Plus NDC."]
["WU-01-04 ","Water Leakage Detection","1 credit point for installing water leakage detection systems in all municipal potable water tank rooms and data halls.","All DC",1,"Y",0]
["WU-01-05","Twin Tank System","1 credit point for providing twin tank for potable water supply system and flushing water supply system.","All DC (including DC with centralised/ shared tank that is outside the assessment boundary)",1,"Y",0]
["WU-01-06","Cooling Tower Water","1 credit point for reducing fresh water consumption by installing water treatment system which can achieve minimum 7 cycles of concentration with acceptable water quality.","All DC with cooling tower using potable water as make up water",1,"Y",0]
[null,null,"1 additional Bonus credit point for 8 or more cycles of concentration with acceptable water quality.",null,"1B","Y",0,"B"]
["WU-02-01","Effluent Discharge to Foul Sewers","1 credit point for demonstrating a reduction in annual sewage volumes by 20% or more.","All DC",1,"Y",0]
["WU-03-01","Water Harvesting and Recycling","(a) Harvested Rainwater\n\n1 credit point for harvesting of rainwater that achieves a reduction of 5% or more in the consumption of potable water.","All DC",1,"Y",0]
[null,null,"(b) Recycled Grey Water \n\n1 credit point for recycling grey water that achieves a reduction of 5% or more in the consumption of potable water.",null,1,"Y",0]
[null,null,"(c) Exemplary Water Recycling\n\n1 additional Bonus credit point where (a) harvested rainwater, (b) recycled grey water or a combination of both leads to a reduction of 10% or more in the consumption of potable water.",null,"1B","Y",0,"B"]
["WU-04-01 ","Smart Water Metering","1 credit point for provision of permanent smart water meter for cooling towers water use and indoor plumbing fixtures and fittings, \n\nand\n\nat least 2 of the other water systems, which are able to display metered data, treading of water consumption and relevant parameters.","All DC with more than one water system",1,"Y",0]
[null,null,null,null,"Credit Applicable:",{"$f":"IF(COUNTIF(F145:F158,\"Y\")=0,\" \", SUMIFS(E145:E158,E145:E158,\">0\",F145:F158,\"Y\"))","v":12}]
[null,null,null,null,"Credit Anticipated:",{"$f":"IF(COUNTIF(F145:F158,\"Y\")=0,\" \",SUMIFS(G145:G158,E145:E158,\">0\",F145:F158,\"Y\"))","v":0}]
[null,null,null,null,"Bonus Anticipated:",{"$f":"IF(COUNTIF(F145:F158,\"Y\")=0,\" \",SUMIFS(G145:G158,E145:E158,\"1B\",F145:F158,\"Y\"))","v":0},null,"B"]
[null,null,null,null,"Percentage of Credits Achieved:",{"$f":"IF(COUNTIF(F145:F158,\"Y\")=0,\" \",IF((F160+F161*1.2)/SUMIF(F145:F158,\"Y\",E145:E158)>100%,100%,(F160+F161*1.2)/SUMIF(F145:F158,\"Y\",E145:E158)))","v":0}]
[]
[null,"Section","Credit Requirement","Extent of Application","Credit Attainable","Credit Applicable","Credit Anticipated"]
["Health and Wellbeing (HWB)",null,null," ","15+6B","Y/N?"]
["HWB-00-P1","Minimum Ventilation Performance","(a) On-site Outdoor Air Quality\n\nMeasure outdoor air pollutants on-site prior to building design to understand the site conditions.\n\n(b) Minimum Ventilation\n\nDemonstrate the project is in compliance with the minimum ventilation quantity in relation to its designed ventilation mode.","All DC","Required","Y","Required"]
["HWB-01-01","Healthy and Active Living","1 Bonus credit point for scoring at least 3 items of all applicable design measures for healthy and active living.","All DC","1B","Y",0,"B"]
["HWB-01-02","Biophilic Design","1 or 2 Bonus credit points for demonstrating visual connection with nature and/ or biophilic design features at an assessment space with Visual Quality Score (VQS) of at least 2 or 3.\n\n","All DC","2B","Y",0,"B"]
["HWB-02-01","Inclusive Design","(a) Universal Accessibility\n\n1 credit point for providing at least 5 applicable enhanced provisions as stipulated in the “Recommended Design Requirements” of BFA 2008.","All DC",1,"Y",0]
[null,null,"(b) Weather Protection & Family Friendly Facilities\n\n1 Bonus credit point for providing prescribed weather protection and at least 2 family friendly facilities features.",null,"1B","Y",0,"B"]
["HWB-03-01","Enhanced Ventilation","Fresh air provision in normally occupied spaces\n\n1 credit point for demonstrating that all normally occupied spaces in the DC are provided with increased ventilation. ","All DC",1,"Y",0]
[null,null,"Fresh air provision in not normally occupied spaces\n\n1 credit point for demonstrating that all not normally occupied spaces in the DC are provided with adequate ventilation.",null,1,"Y",0]
[null,null,"On-site Measurements\n\n1 additional Bonus credit point for conducting on-site measurements to verify the ventilation performance for all normally occupied spaces.",null,"1B","Y",0,"B"]
["HWB-03-02","Waste Odour Control","This credit head is not applicable under BEAM Plus NDC."]
["HWB-03-03","Acoustic and Noise","(a) Data Hall Noise Control\n\n1 credit point for demonstrating the internal noise level at data hall area are maintained at an appropriate level. ","All DC",1,"Y",0]
[null,null,"(b) Noise Isolation\n\n1 credit point for demonstrating airborne noise isolation between rooms, spaces and premises fulfils the prescribed criteria.\n",null,1,"Y",0]
[null,null,"(c) Background Noise\n \n1 credit point for demonstrating background noise levels within the prescribed criteria (including traffic noise and external building service equipment that are within the project boundary).",null,1,"Y",0]
["HWB-03-04","Indoor Vibration","1 credit point for demonstrating vibration levels not exceeding the prescribed criteria.","All DC",1,"Y",0]
["HWB-03-05","Indoor Air Quality","Demonstrate compliance in one of the following paths:\n\n(a)  Option 1\n\n2 credit points for demonstrating compliance with the prescribed limits for Carbon monoxide (CO), Nitrogen dioxide (NO2), Ozone (O3), Carbon dioxide (CO2), Respirable suspended particulates (PM10), Total volatile organic compounds (TVOCs), Formaldehyde (HCHO) and Radon (Rn) in the sampled occupied spaces.\n\n1 credit point for demonstrating compliance with the prescribed limits for Airborne bacteria and conduct the Mould assessment in the sampled occupied spaces.\n\n(b) Option 2\n\n3 credit points for submitting a valid IAQ Certification Scheme (Good Class) certificate issued by the Environmental Protection Department (EPD) covering the whole building.","All DC",3,"Y",0]
[null,null,"For Option 2:\n\n1 additional bonus credit point for achieving Excellent Class.",null,"1B","Y",0,"B"]
["HWB-03-06","Thermal Comfort","(a) Temperature Performance in Data Halls\n\n1 credit point for sustaining the air temperature at the design value within ±2.0°C when air side system in data halls is operating at steady state.","All DC",1,"Y",0]
[null,null,"(b) Temperature Performance in Normally Occupied Areas\n\n1 credit point for sustaining the air temperature at the design value within ±1.5°C when air side system in normally occupied areas is operating at steady state under normal occupied periods.",null,1,"Y",0]
["HWB-03-07","Artificial Lighting","(a) Artificial lighting in Data halls\n\n1 credit point for achieving the prescribed lighting performance in Data halls.","All DC",1,"Y",0]
[null,null,"(b) Artificial lighting in normally occupied spaces, not normally occupied spaces and unoccupied spaces \n\n1 credit point for achieving the prescribed lighting performance in normally occupied spaces, not normally occupied spaces and unoccupied spaces.",null,1,"Y",0]
["HWB-03-08","Daylight","This credit head is not applicable under BEAM Plus NDC."]
["HWB-03-09","Biological Contamination","1 credit point for complying with the recommendations given in the Code of Practice for Prevention of Legionnaires’ Disease 2021 Edition in respect of Water Supply Systems, HVAC Systems and other Water Features.","All DCs",1,"Y",0]
[null,null,null,null,"Credit Applicable:",{"$f":"IF(COUNTIF(F167:F186,\"Y\")=0,\" \", SUMIFS(E167:E186,E167:E186,\">0\",F167:F186,\"Y\"))","v":15}]
[null,null,null,null,"Credit Anticipated:",{"$f":"IF(COUNTIF(F167:F186,\"Y\")=0,\" \",SUMIFS(G167:G186,E167:E186,\">0\",F167:F186,\"Y\"))","v":0}]
[null,null,null,null,"Bonus Anticipated:",{"$f":"IF(COUNTIF(F167:F186,\"Y\")=0,\" \",SUMIFS(G167:G186,E167:E186,\"1B\",F167:F186,\"Y\")+SUMIFS(G167:G186,E167:E186,\"2B\",F167:F186,\"Y\"))","v":0},null,"B"]
[null,null,null,null,"Percentage of Credits Achieved:",{"$f":"IF(COUNTIF(F167:F186,\"Y\")=0,\" \",IF((F188+F189*1.2)/SUMIF(F167:F186,\"Y\",E167:E186)>100%,100%,(F188+F189*1.2)/SUMIF(F167:F186,\"Y\",E167:E186)))","v":0}]
[]
[null,"Section","Credit Requirement","Extent of Application","Credit Attainable","Credit Applicable","Credit Anticipated"]
["Innovations and Additions (IA)",null,null,null,"Max. 10 Bonus","Y/N?"]
["IA-01-01\t","Innovations and Additions","Present evidence of the application of new practices, technologies and/ or techniques that are (1) not described in this manual; or (2) not market mainstream implementation; or (3) multiple aspect achievement; and the associated benefits in addressing sustainability objectives for NDC.","All DC","10B","Y",0,"B"]
[null,null,null,null,null," "]

{"sheet":"Project Score Result","index":2,"n_rows":12,"n_cols":6,"rows_kept":12,"cut":false,"hidden":false,"merged":[[10,0,10,4],[11,0,11,4]]}
[]
[]
["Category","Applicable Credits \n(A)","Achieved Credits \n(B)","% of Achieved Credit \n(C)","Category Weighting \n(D)","Weighted Achieved Score \n(E)"]
[{"$f":"'[1]Credit Checklist'!A5","v":"Integrated Design & Construction Management (IDCM)"},{"$f":"'Credit Checklist'!F45","v":24},{"$f":"IF('Credit Checklist'!F46=\" \",\" \",'Credit Checklist'!F46&\"+\"&'Credit Checklist'!F47&\"B\")","v":"0+0B"},{"$f":"'Credit Checklist'!F48","v":0},0.2,{"$f":"D4*E4","v":0}]
[{"$f":"'[1]Credit Checklist'!A54","v":"Sustainable Site (SS)"},{"$f":"'Credit Checklist'!F80","v":13},{"$f":"IF('Credit Checklist'!F81=\" \",\" \",'Credit Checklist'!F81&\"+\"&'Credit Checklist'!F82&\"B\")","v":"0+0B"},{"$f":"'Credit Checklist'!F83","v":0},0.1,{"$f":"D5*E5","v":0}]
[{"$f":"'[1]Credit Checklist'!A99","v":"Materials and Waste (MW)"},{"$f":"'Credit Checklist'!F111","v":12},{"$f":"IF('Credit Checklist'!F112=\" \",\" \",'Credit Checklist'!F112&\"+\"&'Credit Checklist'!F113&\"B\")","v":"0+0B"},{"$f":"'Credit Checklist'!F114","v":0},0.1,0]
[{"$f":"'[1]Credit Checklist'!A140","v":"Energy Use (EU)"},{"$f":"'Credit Checklist'!F136","v":35},{"$f":"IF('Credit Checklist'!F137=\" \",\" \",'Credit Checklist'!F137&\"+\"&'Credit Checklist'!F138&\"B\")","v":"0+0B"},{"$f":"'Credit Checklist'!F139","v":0},0.4,0]
[{"$f":"'[1]Credit Checklist'!A164","v":"Water Use (WU)"},{"$f":"'Credit Checklist'!F159","v":12},{"$f":"IF('Credit Checklist'!F160=\" \",\" \",'Credit Checklist'!F160&\"+\"&'Credit Checklist'!F161&\"B\")","v":"0+0B"},{"$f":"'Credit Checklist'!F162","v":0},0.1,0]
[{"$f":"'[1]Credit Checklist'!A185","v":"Health and Wellbeing (HWB)"},{"$f":"'Credit Checklist'!F187","v":15},{"$f":"IF('Credit Checklist'!F188=\" \",\" \",'Credit Checklist'!F188&\"+\"&'Credit Checklist'!F189&\"B\")","v":"0+0B"},{"$f":"'Credit Checklist'!F190","v":0},0.1,0]
[{"$f":"'[1]Credit Checklist'!A219","v":"Innovations and Additions (IA)"},null,{"$f":"'Credit Checklist'!G194&\"B\"","v":"0B"},null,null,{"$f":"IF('Credit Checklist'!G194=\" \", \" \", 'Credit Checklist'!G194/100)","v":0}]
["Overall Score",null,null,null,null,{"$f":"IF(SUM(F4:F10)=0, \"\", SUM(F4:F10))","v":""}]
["Overall Rating",null,null,null,null,{"$f":"IF(AND(D7>=0.7,F11>=0.75),\"Platinum\",IF(AND(D7>=0.6,F11>=0.65),\"Gold\",IF(AND(D7>=0.5,F11>=0.55),\"Silver\",IF(AND(D7>=0.4,F11>=0.4),\"Bronze\",IF(F11=\"\",\"\",\"Prerequisite Achieved\")))))","v":""}]

{"sheet":"Pull Down List","index":3,"n_rows":19,"n_cols":42,"rows_kept":19,"cut":false,"hidden":true,"merged":[]}
["Defined Names","areat","ac","area","yn","prereq","prereq_b","sco_1","sco_1_b","sco_2","sco_2_b","sco_3","sco_3_b","sco_5","sco_5_b","sco_15","sco_15_b","sco_bon","sco_bon_b","sco_6","sco_6_b",null,"sco_1_a","sco_2_a","sco_3_a","sco_5_a","sco_15_a",0,null,"Assessment Tools",null,"project type",null,"rank",null,null,null,null,null,"If"]
[null,"Carpark ","Central A/C","Area A",null,"PR","PR","NA","NA","NA","NA","NA","NA","NA","NA","NA","NA","NA","NA","NA","NA",null,"NA","NA","NA","NA","NA","NA",null,null,null,null,null,{"$f":"'Summary (NDC1.0)'!F29","v":"00:00:00"},{"$f":"'Summary (NDC1.0)'!F30","v":"00:00:00"},{"$f":"RANK(AH2,$AH$2:$AI$4)","v":1},{"$f":"RANK(AI2,$AH$2:$AI$4)","v":1},{"$f":"AJ2-AK2","v":0},null,{"$f":"'Summary (NDC1.0)'!#REF!","v":{"$error":"#REF!"}},{"$f":"'Summary (NDC1.0)'!#REF!","v":{"$error":"#REF!"}},{"$f":"IF(AND(AN2<>0,AO2>AN2),1,0)","v":{"$error":"#REF!"}}]
[null,"Clubhouse ","Chiller","Area B","Yes","NA","NA","NS","NS","NS","NS","NS","NS","NS","NS","NS","NS","NS","NS","NS","NS",null,1,2,3,5,15,6,null,"New Data Centers Version 1.0",null,"Provisional Assessment (PA)",null,{"$f":"'Summary (NDC1.0)'!F35","v":"00:00:00"},{"$f":"'Summary (NDC1.0)'!F36","v":"00:00:00"},1,1,{"$f":"AJ3-AK3","v":0},null,{"$f":"'Summary (NDC1.0)'!#REF!","v":{"$error":"#REF!"}},{"$f":"'Summary (NDC1.0)'!#REF!","v":{"$error":"#REF!"}},{"$f":"IF(AND(AN3<>0,AO3>AN3),1,0)","v":{"$error":"#REF!"}}]
[null,"Educational","Mechnical Vent","Area C","No",null,0,1,1,2,2,3,3,5,5,15,15,"1B","1B",6,6,null,null,1,2,4,14,5,null,null,null,"Final Assessment (FA)",null,{"$f":"'Summary (NDC1.0)'!F41","v":"00:00:00"},{"$f":"'Summary (NDC1.0)'!F42","v":"00:00:00"},1,1,0,null,{"$f":"'Summary (NDC1.0)'!#REF!","v":{"$error":"#REF!"}},{"$f":"'Summary (NDC1.0)'!#REF!","v":{"$error":"#REF!"}},{"$error":"#REF!"}]
[null,"Hotel","Split Type A/C","Area D",null,null,null,null,0,1,1,2,2,4,4,14,14,null,0,5,5,null,null,null,1,3,13,4,null,null,null,null,null,null,null,null,null,{"$f":"SUM(AL2:AL4)","v":0},null,{"$f":"'Summary (NDC1.0)'!#REF!","v":{"$error":"#REF!"}},{"$f":"'Summary (NDC1.0)'!#REF!","v":{"$error":"#REF!"}},{"$error":"#REF!"}]
[null,"Industrial","VRV",null,null,null,null,null,null,null,0,1,1,3,3,13,13,null,null,4,4,null,null,null,null,2,12,3,null,null,null,null,null,null,null,null,null,null,null,null,null,{"$f":"SUM(AP2:AP5)","v":{"$error":"#REF!"}}]
[null,"Residential","Windows Type A/C",null,null,null,null,null,null,null,null,null,0,2,2,12,12,null,null,3,3,null,null,null,null,1,11,2]
[null,"Retail","VRV & fresh air",null,null,null,null,null,null,null,null,null,null,1,1,11,11,null,null,2,2,null,null,null,null,null,10,1]
[null,null,"To be provided by future tenant",null,null,null,null,null,null,null,null,null,null,null,0,10,10,null,null,1,1,null,null,null,null,null,9]
[null,null,null,null,null,null,null,null,null,null,null,null,null,null,null,9,9,null,null,null,0,null,null,null,null,null,8]
[null,null,null,null,null,null,null,null,null,null,null,null,null,null,null,8,8,null,null,null,null,null,null,null,null,null,7]
[null,null,null,null,null,null,null,null,null,null,null,null,null,null,null,7,7,null,null,null,null,null,null,null,null,null,6]
[null,null,null,null,null,null,null,null,null,null,null,null,null,null,null,6,6,null,null,null,null,null,null,null,null,null,5]
[null,null,null,null,null,null,null,null,null,null,null,null,null,null,null,5,5,null,null,null,null,null,null,null,null,null,4]
[null,null,null,null,null,null,null,null,null,null,null,null,null,null,null,4,4,null,null,null,null,null,null,null,null,null,3]
[null,null,null,null,null,null,null,null,null,null,null,null,null,null,null,3,3,null,null,null,null,null,null,null,null,null,2]
[null,null,null,null,null,null,null,null,null,null,null,null,null,null,null,2,2,null,null,null,null,null,null,null,null,null,1]
[null,null,null,null,null,null,null,null,null,null,null,null,null,null,null,1,1]
[null,null,null,null,null,null,null,null,null,null,null,null,null,null,null,null,0]